[Event "Bangabandhu Premier Div League 2023-24"]
[Site "Dhaka"]
[Date "2024.02.01"]
[Round "1.5"]
[White "Mohammad Fahad, Rahman"]
[Black "Kushagra Mohan"]
[Result "1/2-1/2"]
[ECO "C78"]
[WhiteElo "2418"]
[BlackElo "2374"]
[Annotator "ChessBase"]
[PlyCount "172"]
[EventDate "2024.02.01"]
[EventCountry "BAN"]
[SourceTitle "playchess.com"]
[Source "ChessBase"]
[SourceQuality "1"]
[TimeControl "40/5400+30:1800+30"]

1. e4 {[%emt 0:00:08]} e5 {[%emt 0:00:05]} 2. Nf3 {[%emt 0:00:13]} Nc6 {[%emt 0:00:03]} 3. Bb5 {[%emt 0:00:14]} a6 {[%emt 0:00:04]} 4. Ba4 {[%emt 0:00:08]} Nf6 {[%emt 0:00:03]} 5. O-O {[%emt 0:00:20]} b5 {[%emt 0:01:15]} 6. Bb3 {[%emt 0:00:08]} Bc5 {[%emt 0:00:03]} 7. a4 {[%emt 0:00:33]} Rb8 {[%emt 0:00:04]} 8. Nxe5 {[%emt 0:00:24]} Nxe5 {[%emt 0:00:32]} 9. d4 {[%emt 0:00:07]} Bxd4 {[%emt 0:00:11]} 10. Qxd4 {[%emt 0:00:03]} Nc6 {[%emt 0:01:34]} 11. Qc5 {[%emt 0:00:33]} Qe7 {[%emt 0:03:02]} 12. Qxe7+ {[%emt 0:03:41]} Kxe7 {[%emt 0:00:08]} 13. axb5 {[%emt 0:10:37]} axb5 {[%emt 0:00:21]} 14. e5 {[%emt 0:15:05]} Ne4 {[%emt 0:00:01]} 15. Bd5 {[%emt 0:01:15]} Nc5 {[%emt 0:00:02]} 16. Be3 {[%emt 0:00:25]} Ne6 {[%emt 0:01:27]} 17. f4 {[%emt 0:05:22]} Ncd4 {[%emt 0:17:53]} 18. f5 {[%emt 0:13:18]} Nxc2 {[%emt 0:01:01]} 19. fxe6 {[%emt 0:00:06]} Nxe3 {[%emt 0:02:24]} 20. Rxf7+ {[%emt 0:00:17]} Ke8 {[%emt 0:00:42]} 21. Bf3 {[%emt 0:18:15]} Nc4 {[%emt 0:05:23]} 22. Rxg7 {[%emt 0:02:11]} Nxe5 {[%emt 0:00:43]} 23. exd7+ {[%emt 0:12:12]} Bxd7 {[%emt 0:00:07]} 24. Nd2 {[%emt 0:00:13]} Kf8 {[%emt 0:03:56]} 25. Rg5 {[%emt 0:00:12]} Nxf3+ {[%emt 0:12:14]} 26. Nxf3 {[%emt 0:00:04]} Rg8 {[%emt 0:00:06]} 27. Rc5 {[%emt 0:02:59]} Bh3 {[%emt 0:00:52]} 28. g3 {[%emt 0:02:42]} Rg7 {[%emt 0:00:23]} 29. Ng5 {[%emt 0:04:34]} Bg4 {[%emt 0:00:50]} 30. Rf1+ {[%emt 0:00:25]} Kg8 {[%emt 0:00:37]} 31. Rf4 {[%emt 0:01:08]} Bc8 {[%emt 0:03:12]} 32. Rd4 {[%emt 0:03:45]} Re7 {[%emt 0:01:43]} 33. Rd8+ {[%emt 0:02:22]} Kg7 {[%emt 0:00:00]} 34. Kf2 {[%emt 0:00:46]} Ra8 {[%emt 0:09:31]} 35. Rxb5 {[%emt 0:01:22]} Ba6 {[%emt 0:00:34]} 36. Rxa8 {[%emt 0:00:57]} Bxb5 {[%emt 0:00:01]} 37. Rc8 {[%emt 0:01:21]} Re2+ {[%emt 0:00:45]} 38. Kf3 {[%emt 0:00:18]} Rxh2 {[%emt 0:00:25]} 39. Rxc7+ {[%emt 0:00:16]} Kg6 {[%emt 0:00:17]} 40. Ne6 {[%emt 0:00:28]} Rxb2 {[%emt 0:01:53]} 41. Nf8+ {[%emt 0:02:24]} Kf6 {[%emt 0:00:12]} 42. Nxh7+ {[%emt 0:00:21]} Kg6 {[%emt 0:00:04]} 43. Nf8+ {[%emt 0:00:25]} Kf6 {[%emt 0:00:04]} 44. Rc5 {[%emt 0:11:11]} Rb3+ {[%emt 0:01:26]} 45. Kg2 {[%emt 0:00:25]} Rb2+ {[%emt 0:01:02]} 46. Kh3 {[%emt 0:00:13]} Bf1+ {[%emt 0:00:46]} 47. Kg4 {[%emt 0:00:28]} Be2+ {[%emt 0:00:09]} 48. Kf4 {[%emt 0:00:12]} Rb4+ {[%emt 0:00:41]} 49. Ke3 {[%emt 0:00:06]} Bg4 {[%emt 0:00:16]} 50. Rc6+ {[%emt 0:00:13]} Kg7 {[%emt 0:00:15]} 51. Ng6 {[%emt 0:01:02]} Bd7 {[%emt 0:00:21]} 52. Rd6 {[%emt 0:00:12]} Rb3+ {[%emt 0:00:12]} 53. Kf4 {[%emt 0:00:15]} Rb4+ {[%emt 0:00:39]} 54. Kg5 {[%emt 0:00:59]} Rb5+ {[%emt 0:00:34]} 55. Kh4 {[%emt 0:00:26]} Be8 {[%emt 0:04:13]} 56. Nf4 {[%emt 0:00:11]} Bf7 {[%emt 0:00:00]} 57. g4 {[%emt 0:00:22]} Rb7 {[%emt 0:00:11]} 58. Ne2 {[%emt 0:00:14]} Re7 {[%emt 0:03:03]} 59. Nd4 {[%emt 0:01:12]} Bg6 {[%emt 0:00:34]} 60. Nc6 {[%emt 0:01:33]} Rb7 {[%emt 0:01:07]} 61. Ne5 {[%emt 0:00:27]} Bc2 {[%emt 0:00:57]} 62. Kg5 {[%emt 0:00:24]} Ra7 {[%emt 0:00:16]} 63. Nc6 {[%emt 0:00:37]} Rb7 {[%emt 0:00:19]} 64. Nd4 {[%emt 0:00:09]} Bb3 {[%emt 0:00:42]} 65. Nf5+ {[%emt 0:00:43]} Kh7 {[%emt 0:00:41]} 66. Rd2 {[%emt 0:03:08]} Be6 {[%emt 0:00:43]} 67. Kf6 {[%emt 0:00:11]} Bxf5 {[%emt 0:14:26]} 68. gxf5 {[%emt 0:00:02]} Rb6+ {[%emt 0:01:11]} 69. Kf7 {[%emt 0:03:00]} Rb7+ {[%emt 0:04:27]} 70. Kf8 {[%emt 0:03:01]} Rb8+ {[%emt 0:00:38]} 71. Ke7 {[%emt 0:00:12]} Kg8 {[%emt 0:01:12]} 72. Rg2+ {[%emt 0:01:10]} Kh7 {[%emt 0:00:15]} 73. Rd2 {[%emt 0:01:02]} Kg8 {[%emt 0:00:28]} 74. Rd7 {[%emt 0:00:05]} Rf8 {[%emt 0:03:02]} 75. Ke6 {[%emt 0:00:03]} Ra8 {[%emt 0:00:19]} 76. Rd6 {[%emt 0:01:06]} Kg7 {[%emt 0:01:49]} 77. Rd7+ {[%emt 0:00:42]} Kf8 {[%emt 0:00:37]} 78. Rf7+ {[%emt 0:00:32]} Kg8 {[%emt 0:00:05]} 79. Rb7 {[%emt 0:00:07]} Kf8 {[%emt 0:00:12]} 80. Rb6 {[%emt 0:00:12]} Kg7 {[%emt 0:00:43]} 81. f6+ {[%emt 0:00:16]} Kf8 {[%emt 0:00:23]} 82. Rc6 {[%emt 0:01:07]} Re8+ {[%emt 0:00:16]} 83. Kf5 {[%emt 0:00:06]} Re1 {[%emt 0:00:02]} 84. Rc8+ {[%emt 0:00:07]} Kf7 {[%emt 0:00:03]} 85. Rc7+ {[%emt 0:00:06]} Kf8 {[%emt 0:00:02]} 86. Rc8+ {[%emt 0:00:05]} Kf7 {[%emt 0:00:03]} 1/2-1/2

[Event "Bangabandhu Premier Div League 2023-24"]
[Site "Dhaka"]
[Date "2024.02.01"]
[Round "1.5"]
[White "Majumder, Ahmed Hossain"]
[Black "Nasim Hossain, Bhuiyan"]
[Result "1/2-1/2"]
[ECO "D45"]
[WhiteElo "1934"]
[BlackElo "1812"]
[Annotator "ChessBase"]
[PlyCount "181"]
[EventDate "2024.02.01"]
[EventCountry "BAN"]
[SourceTitle "playchess.com"]
[Source "ChessBase"]
[SourceQuality "1"]
[TimeControl "40/5400+30:1800+30"]

1. d4 {[%emt 0:00:31]} d5 {[%emt 0:00:15]} 2. c4 {[%emt 0:01:00]} e6 {[%emt 0:00:26]} 3. Nf3 {[%emt 0:01:11]} Nf6 {[%emt 0:01:07]} 4. Nc3 {[%emt 0:02:49]} c6 {[%emt 0:02:11]} 5. e3 {[%emt 0:05:59]} Nbd7 {[%emt 0:01:24]} 6. cxd5 {[%emt 0:01:43]} exd5 {[%emt 0:02:47]} 7. Bd3 {[%emt 0:00:58]} Bd6 {[%emt 0:00:39]} 8. O-O {[%emt 0:03:01]} O-O {[%emt 0:00:22]} 9. Qc2 {[%emt 0:03:26]} Re8 {[%emt 0:09:04]} 10. Rb1 {[%emt 0:01:29]} Nf8 {[%emt 0:01:35]} 11. b4 {[%emt 0:04:13]} a6 {[%emt 0:08:59]} 12. a4 {[%emt 0:01:06]} Qe7 {[%emt 0:04:46]} 13. b5 {[%emt 0:06:07]} axb5 {[%emt 0:03:05]} 14. axb5 {[%emt 0:00:19]} Ne4 {[%emt 0:00:19]} 15. Ne2 {[%emt 0:02:47]} c5 {[%emt 0:05:14]} 16. dxc5 {[%emt 0:04:37]} Nxc5 {[%emt 0:00:26]} 17. Bf5 {[%emt 0:02:37]} Ne4 {[%emt 0:00:53]} 18. Ned4 {[%emt 0:55:37]} Qf6 {[%emt 0:09:50]} 19. Bxc8 {[%emt 0:00:00]} Rexc8 {[%emt 0:01:50]} 20. Qb3 {[%emt 0:00:00]} Ng6 {[%emt 0:09:47]} 21. Bb2 {[%emt 0:00:00]} Nh4 {[%emt 0:12:05]} 22. Qxd5 {[%emt 0:00:00]} Re8 {[%emt 0:09:53]} 23. Qh5 {[%emt 0:00:00]} Ng6 {[%emt 0:04:20]} 24. Nf5 {[%emt 0:00:00]} Be5 {[%emt 0:02:44]} 25. Bd4 {[%emt 0:00:00]} Bxd4 {[%emt 0:03:30]} 26. N5xd4 {[%emt 0:00:00]} Ra2 {[%emt 0:01:50]} 27. Ra1 {[%emt 0:00:00]} Rb2 {[%emt 0:00:13]} 28. Qd5 {[%emt 0:00:00]} Qb6 {[%emt 0:03:49]} 29. Qc4 {[%emt 0:00:00]} Qd6 {[%emt 0:00:40]} 30. Rab1 {[%emt 0:00:00]} Nd2 {[%emt 0:00:33]} 31. Nxd2 {[%emt 0:00:00]} Rxd2 {[%emt 0:00:05]} 32. Rfd1 {[%emt 0:00:00]} Ne5 {[%emt 0:00:31]} 33. Qb3 {[%emt 0:00:39]} Rxd1+ {[%emt 0:01:03]} 34. Rxd1 {[%emt 0:00:56]} Ng4 {[%emt 0:00:13]} 35. Nf3 {[%emt 0:00:39]} Qb6 {[%emt 0:00:32]} 36. h3 {[%emt 0:00:24]} Nf6 {[%emt 0:00:23]} 37. Nd4 {[%emt 0:01:31]} h6 {[%emt 0:00:11]} 38. Rc1 {[%emt 0:01:28]} Ne4 {[%emt 0:00:22]} 39. Qd5 {[%emt 0:00:46]} Nf6 {[%emt 0:01:13]} 40. Qc5 {[%emt 0:00:24]} Qa5 {[%emt 0:00:40]} 41. Qc3 {[%emt 0:31:53]} Qa2 {[%emt 0:30:15]} 42. Qc2 {[%emt 0:00:56]} Qa3 {[%emt 0:00:00]} 43. Qc3 {[%emt 0:02:54]} Qa2 {[%emt 0:00:00]} 44. Qa1 {[%emt 0:00:00]} Qd2 {[%emt 0:00:00]} 45. Rc2 {[%emt 0:00:00]} Qb4 {[%emt 0:00:00]} 46. Qc1 {[%emt 0:00:00]} Kh7 {[%emt 0:00:00]} 47. Rc7 {[%emt 0:00:00]} Re7 {[%emt 0:00:00]} 48. Qc3 {[%emt 0:00:00]} Qb1+ {[%emt 0:00:00]} 49. Qc1 {[%emt 0:00:00]} Qb4 {[%emt 0:00:00]} 50. Rxe7 {[%emt 0:00:00]} Qxe7 {[%emt 0:00:00]} 51. g4 {[%emt 0:00:00]} g6 {[%emt 0:00:00]} 52. Qc4 {[%emt 0:00:00]} Kg7 {[%emt 0:00:00]} 53. b6 {[%emt 0:00:00]} Qe4 {[%emt 0:00:00]} 54. Qc3 {[%emt 0:00:00]} Qb1+ {[%emt 0:00:00]} 55. Kh2 {[%emt 0:00:00]} Qxb6 {[%emt 0:00:00]} 56. f4 {[%emt 0:00:00]} Kh7 {[%emt 0:00:00]} 57. Qd3 {[%emt 0:00:47]} Qb2+ {[%emt 0:00:00]} 58. Kg3 {[%emt 0:00:34]} Qc1 {[%emt 0:00:00]} 59. Nf3 {[%emt 0:00:31]} Qc6 {[%emt 0:00:00]} 60. Nd2 {[%emt 0:02:06]} Qd5 {[%emt 0:00:00]} 61. Qxd5 {[%emt 0:00:34]} Nxd5 {[%emt 0:00:00]} 62. e4 {[%emt 0:00:29]} Nc3 {[%emt 0:00:00]} 63. Kf3 {[%emt 0:00:08]} Kg7 {[%emt 0:00:00]} 64. e5 {[%emt 0:00:14]} Kf8 {[%emt 0:00:00]} 65. f5 {[%emt 0:00:41]} g5 {[%emt 0:00:00]} 66. Ke3 {[%emt 0:01:10]} Nd5+ {[%emt 0:00:00]} 67. Kf3 {[%emt 0:00:05]} b5 {[%emt 0:00:00]} 68. Nb3 {[%emt 0:00:08]} Nf4 {[%emt 0:00:00]} 69. h4 {[%emt 0:00:12]} Nd3 {[%emt 0:00:00]} 70. hxg5 {[%emt 0:00:09]} hxg5 {[%emt 0:00:00]} 71. Ke4 {[%emt 0:00:25]} Nf2+ {[%emt 0:00:00]} 72. Kf3 {[%emt 0:00:15]} Nh3 {[%emt 0:00:00]} 73. Ke4 {[%emt 0:06:32]} Nf2+ {[%emt 0:03:24]} 74. Kf3 {[%emt 0:00:00]} Nd3 {[%emt 0:03:21]} 75. Ke4 {[%emt 0:00:00]} Nf4 {[%emt 0:02:06]} 76. Kd4 {[%emt 0:00:00]} Nh3 {[%emt 0:01:18]} 77. Ke4 {[%emt 0:00:00]} Ke8 {[%emt 0:00:24]} 78. Nc5 {[%emt 0:00:00]} b4 {[%emt 0:00:31]} 79. Kd4 {[%emt 0:00:00]} Nf2 {[%emt 0:00:20]} 80. Kc4 {[%emt 0:00:56]} Nxg4 {[%emt 0:00:06]} 81. e6 {[%emt 0:00:45]} Ne3+ {[%emt 0:00:29]} 82. Kxb4 {[%emt 0:00:06]} f6 {[%emt 0:01:20]} 83. Ne4 {[%emt 0:00:07]} Nxf5 {[%emt 0:01:11]} 84. Nxf6+ {[%emt 0:00:24]} Ke7 {[%emt 0:00:10]} 85. Ng4 {[%emt 0:00:13]} Kxe6 {[%emt 0:00:13]} 86. Kc4 {[%emt 0:00:26]} Nd6+ {[%emt 0:00:06]} 87. Kd3 {[%emt 0:00:22]} Kf5 {[%emt 0:00:01]} 88. Nh6+ {[%emt 0:00:43]} Kf4 {[%emt 0:00:07]} 89. Ke2 {[%emt 0:00:16]} Ne4 {[%emt 0:00:32]} 90. Kf1 {[%emt 0:00:20]} Kf3 {[%emt 0:00:29]} 91. Nf7 {[%emt 0:04:22]} 1/2-1/2

[Event "Bangabandhu Premier Div League 2023-24"]
[Site "Dhaka"]
[Date "2024.02.01"]
[Round "1.6"]
[White "Chowdhury, Sohel"]
[Black "Puranik, Abhimanyu"]
[Result "0-1"]
[ECO "B26"]
[WhiteElo "1956"]
[BlackElo "2645"]
[Annotator "ChessBase"]
[PlyCount "64"]
[EventDate "2024.02.01"]
[EventCountry "BAN"]
[SourceTitle "playchess.com"]
[Source "ChessBase"]
[SourceQuality "1"]
[TimeControl "40/5400+30:1800+30"]

1. e4 {[%emt 0:00:06]} c5 {[%emt 0:00:21]} 2. Nc3 {[%emt 0:00:30]} Nc6 {[%emt 0:00:07]} 3. g3 {[%emt 0:00:44]} g6 {[%emt 0:00:05]} 4. Bg2 {[%emt 0:00:07]} Bg7 {[%emt 0:00:04]} 5. d3 {[%emt 0:00:26]} d6 {[%emt 0:00:11]} 6. Be3 {[%emt 0:01:35]} Rb8 {[%emt 0:00:23]} 7. Qd2 {[%emt 0:04:38]} b5 {[%emt 0:00:09]} 8. a3 {[%emt 0:04:19]} a5 {[%emt 0:01:26]} 9. Nge2 {[%emt 0:04:24]} b4 {[%emt 0:01:10]} 10. axb4 {[%emt 0:00:13]} axb4 {[%emt 0:00:03]} 11. Nd1 {[%emt 0:01:48]} Nd4 {[%emt 1:32:01]} 12. O-O {[%emt 0:06:57]} h5 {[%emt 0:00:00]} 13. Nc1 {[%emt 1:11:13]} Nf6 {[%emt 0:00:00]} 14. c3 {[%emt 0:00:00]} Nc6 {[%emt 0:00:00]} 15. h3 {[%emt 0:00:00]} O-O {[%emt 0:00:00]} 16. Bh6 {[%emt 0:00:00]} Qb6 {[%emt 0:00:00]} 17. Bxg7 {[%emt 0:00:00]} Kxg7 {[%emt 0:00:00]} 18. Ne2 {[%emt 0:00:00]} Na5 {[%emt 0:00:00]} 19. Qc2 {[%emt 0:00:00]} e5 {[%emt 0:00:00]} 20. c4 {[%emt 0:00:00]} Nc6 {[%emt 0:00:00]} 21. Ne3 {[%emt 0:00:00]} h4 {[%emt 0:00:00]} 22. Qd2 {[%emt 0:00:00]} hxg3 {[%emt 0:00:00]} 23. fxg3 {[%emt 0:00:00]} Nh7 {[%emt 0:00:00]} 24. g4 {[%emt 0:00:00]} Qd8 {[%emt 0:00:00]} 25. Ng3 {[%emt 0:00:00]} Nd4 {[%emt 0:00:00]} 26. Qf2 {[%emt 0:00:00]} Ng5 {[%emt 0:00:00]} 27. Ra7 {[%emt 0:00:00]} Rb7 {[%emt 0:00:00]} 28. Rxb7 {[%emt 0:00:00]} Bxb7 {[%emt 0:00:00]} 29. Nc2 {[%emt 0:00:00]} Nxc2 {[%emt 0:00:00]} 30. Qxc2 {[%emt 0:00:00]} Rh8 {[%emt 0:00:00]} 31. Kh2 {[%emt 0:02:15]} Bc8 {[%emt 0:00:00]} 32. Qe2 {[%emt 0:03:18]} Rh4 {[%emt 0:00:00]} 0-1

[Event "Bangabandhu Premier Div League 2023-24"]
[Site "Dhaka"]
[Date "2024.02.01"]
[Round "1.6"]
[White "Mrittika Mallick"]
[Black "Rathanvel, V S"]
[Result "1/2-1/2"]
[ECO "B52"]
[WhiteElo "1859"]
[BlackElo "2474"]
[Annotator "ChessBase"]
[PlyCount "97"]
[EventDate "2024.02.01"]
[EventCountry "BAN"]
[SourceTitle "playchess.com"]
[Source "ChessBase"]
[SourceQuality "1"]
[TimeControl "40/5400+30:1800+30"]

1. e4 {[%emt 0:00:02]} c5 {[%emt 0:00:14]} 2. Nf3 {[%emt 0:00:23]} d6 {[%emt 0:00:38]} 3. Bb5+ {[%emt 0:00:08]} Bd7 {[%emt 0:00:13]} 4. Bxd7+ {[%emt 0:00:11]} Nxd7 {[%emt 0:00:05]} 5. O-O {[%emt 0:00:14]} Ngf6 {[%emt 0:00:13]} 6. Qe2 {[%emt 0:00:13]} e6 {[%emt 0:00:14]} 7. d4 {[%emt 0:00:13]} cxd4 {[%emt 0:00:07]} 8. Nxd4 {[%emt 0:00:08]} Be7 {[%emt 0:00:06]} 9. c4 {[%emt 0:00:18]} Qa5 {[%emt 0:00:12]} 10. Nc3 {[%emt 0:01:21]} Rc8 {[%emt 0:00:33]} 11. Be3 {[%emt 0:06:10]} a6 {[%emt 0:00:28]} 12. Rac1 {[%emt 0:06:34]} O-O {[%emt 0:00:14]} 13. f4 {[%emt 0:05:21]} Qh5 {[%emt 0:22:24]} 14. Qxh5 {[%emt 0:06:24]} Nxh5 {[%emt 0:00:09]} 15. b3 {[%emt 0:00:25]} Nhf6 {[%emt 0:12:51]} 16. Nf3 {[%emt 0:04:24]} Nc5 {[%emt 0:59:49]} 17. e5 {[%emt 0:03:46]} dxe5 {[%emt 0:00:00]} 18. Nxe5 {[%emt 1:03:15]} Ncd7 {[%emt 0:00:00]} 19. Nxd7 {[%emt 0:00:00]} Nxd7 {[%emt 0:00:00]} 20. Rcd1 {[%emt 0:00:00]} Nf6 {[%emt 0:00:00]} 21. Rd3 {[%emt 0:00:00]} Bb4 {[%emt 0:00:00]} 22. Na4 {[%emt 0:00:00]} b5 {[%emt 0:00:00]} 23. Nb6 {[%emt 0:00:00]} bxc4 {[%emt 0:00:00]} 24. Nxc4 {[%emt 0:00:00]} Nd5 {[%emt 0:00:00]} 25. Bd4 {[%emt 0:00:00]} Rfd8 {[%emt 0:00:00]} 26. Rff3 {[%emt 0:00:00]} f6 {[%emt 0:00:00]} 27. g3 {[%emt 0:00:00]} Kf7 {[%emt 0:00:00]} 28. Kg2 {[%emt 0:00:00]} Rd7 {[%emt 0:00:04]} 29. f5 {[%emt 0:00:00]} exf5 {[%emt 0:04:34]} 30. Rxf5 {[%emt 0:00:00]} Rcd8 {[%emt 0:01:22]} 31. Rf1 {[%emt 0:00:00]} Kg8 {[%emt 0:00:49]} 32. Rfd1 {[%emt 0:00:00]} Nc7 {[%emt 0:00:35]} 33. Nb6 {[%emt 0:00:00]} Rd6 {[%emt 0:00:25]} 34. Nc4 {[%emt 0:00:00]} Rd5 {[%emt 0:00:29]} 35. Nb6 {[%emt 0:00:00]} R5d6 {[%emt 0:00:28]} 36. Nc4 {[%emt 0:00:00]} R6d7 {[%emt 0:00:34]} 37. Nb6 {[%emt 0:00:00]} Re7 {[%emt 0:00:25]} 38. Be3 {[%emt 0:00:00]} Rde8 {[%emt 0:00:42]} 39. Nc4 {[%emt 0:00:00]} Nb5 {[%emt 0:00:16]} 40. Kf3 {[%emt 0:02:33]} Kf7 {[%emt 0:00:37]} 41. a4 {[%emt 0:32:20]} Na3 {[%emt 0:03:02]} 42. Nxa3 {[%emt 0:00:00]} Bxa3 {[%emt 0:00:03]} 43. Rb1 {[%emt 0:00:00]} Bb4 {[%emt 0:03:24]} 44. Rc1 {[%emt 0:00:00]} g5 {[%emt 0:10:44]} 45. Rc4 {[%emt 0:00:00]} a5 {[%emt 0:00:47]} 46. h4 {[%emt 0:00:00]} Kg6 {[%emt 0:05:00]} 47. Bc5 {[%emt 0:00:00]} Bxc5 {[%emt 0:02:00]} 48. Rxc5 {[%emt 0:00:00]} Re5 {[%emt 0:00:53]} 49. Rxe5 {[%emt 0:01:27]} 1/2-1/2

[Event "Bangabandhu Premier Div League 2023-24"]
[Site "Dhaka"]
[Date "2024.02.01"]
[Round "1.7"]
[White "Ter-Sahakyan, Samvel"]
[Black "Sajidul, Haque"]
[Result "1-0"]
[ECO "D93"]
[WhiteElo "2649"]
[BlackElo "1922"]
[Annotator "ChessBase"]
[PlyCount "93"]
[EventDate "2024.02.01"]
[EventCountry "BAN"]
[SourceTitle "playchess.com"]
[Source "ChessBase"]
[SourceQuality "1"]
[TimeControl "40/5400+30:1800+30"]

1. d4 {[%emt 1:31:00]} Nf6 {[%emt 1:31:00]} 2. c4 {[%emt 0:00:30]} g6 {[%emt 0:00:30]} 3. Nc3 {[%emt 0:00:30]} d5 {[%emt 0:00:30]} 4. Bf4 {[%emt 0:00:30]} c6 {[%emt 0:00:30]} 5. e3 {[%emt 0:00:30]} Bg7 {[%emt 0:00:30]} 6. Nf3 {[%emt 0:00:30]} O-O {[%emt 0:00:30]} 7. h3 {[%emt 0:00:30]} Re8 {[%emt 0:00:30]} 8. Be2 {[%emt 0:00:30]} dxc4 {[%emt 0:00:30]} 9. Bxc4 {[%emt 0:00:30]} b5 {[%emt 0:00:30]} 10. Bb3 {[%emt 0:00:30]} b4 {[%emt 0:00:30]} 11. Na4 {[%emt 0:00:30]} Nd5 {[%emt 0:00:30]} 12. Bg3 {[%emt 0:00:30]} e6 {[%emt 0:00:30]} 13. Ne5 {[%emt 0:00:30]} h5 {[%emt 0:00:30]} 14. Rc1 {[%emt 0:00:30]} h4 {[%emt 0:00:30]} 15. Bh2 {[%emt 0:00:30]} Qg5 {[%emt 0:00:30]} 16. O-O {[%emt 0:00:30]} Ba6 {[%emt 0:00:30]} 17. Re1 {[%emt 0:00:30]} Bb5 {[%emt 0:00:30]} 18. Nc5 {[%emt 0:00:30]} a5 {[%emt 0:00:30]} 19. Ba4 {[%emt 0:00:30]} Nb6 {[%emt 0:00:30]} 20. Bxb5 {[%emt 0:00:30]} cxb5 {[%emt 0:00:30]} 21. Qe2 {[%emt 0:00:30]} Ra7 {[%emt 0:00:30]} 22. Qxb5 {[%emt 0:00:30]} N8d7 {[%emt 0:00:30]} 23. Nc6 {[%emt 0:00:30]} Raa8 {[%emt 0:00:30]} 24. Bc7 {[%emt 0:00:30]} Nxc5 {[%emt 0:00:30]} 25. Bxb6 {[%emt 0:00:30]} Ne4 {[%emt 0:00:30]} 26. Qxg5 {[%emt 0:00:30]} Nxg5 {[%emt 0:00:30]} 27. Bxa5 {[%emt 0:00:30]} Ne4 {[%emt 0:00:30]} 28. Ra1 {[%emt 0:00:30]} Ra6 {[%emt 0:00:30]} 29. Rec1 {[%emt 0:00:30]} Rea8 {[%emt 0:00:30]} 30. Bxb4 {[%emt 0:00:30]} Rxa2 {[%emt 0:00:30]} 31. Rab1 {[%emt 0:00:30]} Bf8 {[%emt 0:00:30]} 32. Be1 {[%emt 0:00:30]} R8a4 {[%emt 0:00:30]} 33. Ne5 {[%emt 0:00:30]} Bd6 {[%emt 0:00:30]} 34. Nf3 {[%emt 0:00:30]} Ra8 {[%emt 0:00:30]} 35. Ne5 {[%emt 0:00:30]} R8a4 {[%emt 0:00:30]} 36. Nd3 {[%emt 0:00:30]} Ra8 {[%emt 0:00:30]} 37. Nc5 {[%emt 0:00:30]} Nf6 38. b4 {[%emt 0:00:30]} e5 {[%emt 0:01:00]} 39. Nb7 {[%emt 0:00:30]} Bb8 {[%emt 0:00:30]} 40. Rc8+ {[%emt 0:00:30]} Kg7 41. dxe5 {[%emt 0:30:30]} Bxe5 {[%emt 0:31:00]} 42. Rxa8 {[%emt 0:00:30]} Rxa8 {[%emt 0:00:30]} 43. f4 {[%emt 0:00:30]} Bc7 {[%emt 0:00:30]} 44. Bc3 {[%emt 0:00:30]} Ra3 {[%emt 0:00:30]} 45. Bd4 {[%emt 0:00:30]} Bb8 {[%emt 0:00:30]} 46. b5 {[%emt 0:00:30]} Ra4 {[%emt 0:00:30]} 47. Nc5 {[%emt 0:00:30]} 1-0

[Event "Bangabandhu Premier Div League 2023-24"]
[Site "Dhaka"]
[Date "2024.02.01"]
[Round "1.7"]
[White "Mohammed Abdul, Malek"]
[Black "Tanvir, Alam"]
[Result "1/2-1/2"]
[ECO "E09"]
[WhiteElo "2047"]
[BlackElo "1836"]
[Annotator "ChessBase"]
[PlyCount "60"]
[EventDate "2024.02.01"]
[EventCountry "BAN"]
[SourceTitle "playchess.com"]
[Source "ChessBase"]
[SourceQuality "1"]
[TimeControl "40/5400+30:1800+30"]

1. c4 {[%emt 0:00:04]} Nf6 {[%emt 0:00:25]} 2. g3 {[%emt 0:00:05]} e6 {[%emt 0:00:38]} 3. Bg2 {[%emt 0:00:07]} d5 {[%emt 0:00:31]} 4. Nf3 {[%emt 0:00:26]} Be7 {[%emt 0:01:49]} 5. O-O {[%emt 0:00:08]} O-O {[%emt 0:01:20]} 6. d4 {[%emt 0:00:55]} c6 {[%emt 0:01:54]} 7. Nbd2 {[%emt 0:00:28]} Nbd7 {[%emt 0:03:41]} 8. Qc2 {[%emt 0:00:29]} b6 {[%emt 0:00:35]} 9. e4 {[%emt 0:06:23]} dxe4 {[%emt 0:02:40]} 10. Ne5 {[%emt 0:08:55]} Qc7 {[%emt 0:08:44]} 11. Nxe4 {[%emt 0:02:02]} Nxe5 {[%emt 0:09:32]} 12. dxe5 {[%emt 0:00:16]} Nxe4 {[%emt 0:02:21]} 13. Bxe4 {[%emt 0:02:54]} h6 {[%emt 0:00:47]} 14. Qe2 {[%emt 0:00:52]} Rd8 {[%emt 0:03:15]} 15. Bc2 {[%emt 0:01:10]} Bf8 {[%emt 0:01:16]} 16. h4 {[%emt 0:04:31]} Bb7 {[%emt 0:00:02]} 17. Bf4 {[%emt 0:02:07]} c5 {[%emt 0:00:57]} 18. f3 {[%emt 0:02:17]} Rd4 {[%emt 0:01:50]} 19. Rad1 {[%emt 0:00:55]} Rad8 {[%emt 0:01:41]} 20. h5 {[%emt 0:02:18]} Bc6 {[%emt 0:02:13]} 21. Kg2 {[%emt 0:01:38]} Qb7 {[%emt 0:01:27]} 22. Be3 {[%emt 0:03:39]} Rxd1 {[%emt 0:01:27]} 23. Rxd1 {[%emt 0:00:02]} Rd7 {[%emt 0:02:22]} 24. Rxd7 {[%emt 0:09:16]} Qxd7 {[%emt 0:01:57]} 25. Bb1 {[%emt 0:00:19]} f5 {[%emt 0:07:17]} 26. exf6 {[%emt 0:01:05]} gxf6 {[%emt 0:00:03]} 27. Qc2 {[%emt 0:00:51]} f5 {[%emt 0:00:02]} 28. Qc1 {[%emt 0:03:57]} Qg7 {[%emt 0:01:10]} 29. Bf2 {[%emt 0:05:55]} Qg4 {[%emt 0:02:38]} 30. Qc3 {[%emt 0:01:45]} Bg7 {[%emt 0:01:33]} 1/2-1/2

[Event "Bangabandhu Premier Div League 2023-24"]
[Site "Dhaka"]
[Date "2024.02.01"]
[Round "1.8"]
[White "Suvradeepta, Das"]
[Black "Rahman, Ziaur"]
[Result "0-1"]
[ECO "B30"]
[WhiteElo "2141"]
[BlackElo "2428"]
[Annotator "ChessBase"]
[PlyCount "60"]
[EventDate "2024.02.01"]
[EventCountry "BAN"]
[SourceTitle "playchess.com"]
[Source "ChessBase"]
[SourceQuality "1"]
[TimeControl "40/5400+30:1800+30"]

1. e4 {[%emt 0:00:02]} c5 {[%emt 0:01:19]} 2. Nf3 {[%emt 0:00:06]} Nc6 {[%emt 0:01:24]} 3. Bb5 {[%emt 0:00:16]} e6 {[%emt 0:01:22]} 4. Bxc6 {[%emt 0:00:36]} bxc6 {[%emt 0:01:59]} 5. O-O {[%emt 0:00:09]} Ne7 {[%emt 0:02:33]} 6. e5 {[%emt 0:01:06]} Ng6 {[%emt 0:01:44]} 7. d3 {[%emt 0:01:23]} Be7 {[%emt 0:04:46]} 8. Nbd2 {[%emt 0:06:17]} Qc7 {[%emt 0:02:11]} 9. Re1 {[%emt 0:04:41]} O-O {[%emt 0:01:39]} 10. Nc4 {[%emt 0:03:49]} f6 {[%emt 0:02:48]} 11. g3 {[%emt 0:03:11]} fxe5 {[%emt 0:11:15]} 12. Nfxe5 {[%emt 0:00:45]} Nxe5 {[%emt 0:00:38]} 13. Nxe5 {[%emt 0:00:12]} d6 {[%emt 0:08:24]} 14. Nc4 {[%emt 0:01:44]} Bf6 {[%emt 0:01:24]} 15. Rb1 {[%emt 0:09:14]} Bd4 {[%emt 0:03:53]} 16. Re2 {[%emt 0:04:28]} d5 {[%emt 0:08:53]} 17. Ne3 {[%emt 0:06:42]} e5 {[%emt 0:01:11]} 18. c3 {[%emt 0:02:20]} Bxe3 {[%emt 0:01:17]} 19. Rxe3 {[%emt 0:00:15]} d4 {[%emt 0:01:37]} 20. Rf3 {[%emt 0:09:54]} Re8 {[%emt 0:03:38]} 21. cxd4 {[%emt 0:03:03]} cxd4 {[%emt 0:01:11]} 22. Bd2 {[%emt 0:06:40]} Bg4 {[%emt 0:02:07]} 23. Qb3+ {[%emt 0:01:17]} Be6 {[%emt 0:00:16]} 24. Qa3 {[%emt 0:01:02]} Bd5 {[%emt 0:02:47]} 25. Rf5 {[%emt 0:04:04]} Qd7 {[%emt 0:00:23]} 26. g4 {[%emt 0:03:09]} g6 {[%emt 0:01:59]} 27. Rg5 {[%emt 0:02:03]} Qf7 {[%emt 0:01:27]} 28. f4 {[%emt 0:04:26]} h6 {[%emt 0:01:46]} 29. Rxe5 {[%emt 0:03:24]} Rxe5 {[%emt 0:00:07]} 30. fxe5 {[%emt 0:00:03]} Qf3 {[%emt 0:00:07]} 0-1